[Event "Titled Tuesday Blitz August 22 Late 2023"]
[White "Van Foreest, Jorden"]
[Black "Harshavardhan G B"]
[WhiteFideId "1039784"]
[BlackFideId "25059009"]
[WhiteElo "2997"]
[BlackElo "2815"]
[Result "1-0"]
[Round "4"]
[TimeControl "180+1"]
[Date "2023.08.22"]
[WhiteClock "0:01:52"]
[BlackClock "0:00:07"]
[Board "12"]

1. e4 {[%clk 0:02:56]}  c5 {[%clk 0:02:58]} 2. Nf3 {[%clk 0:02:51]}  d6 {[%clk 0:02:58]} 3. Bd3 {[%clk 0:02:48]}  g6 {[%clk 0:02:55]} 4. O-O {[%clk 0:02:48]}  Bg7 {[%clk 0:02:54]} 5. c3 {[%clk 0:02:49]}  Nc6 {[%clk 0:02:53]} 6. Bc2 {[%clk 0:02:49]}  e5 {[%clk 0:02:53]} 7. a3 {[%clk 0:02:39]}  a5 {[%clk 0:02:48]} 8. a4 {[%clk 0:02:38]}  Nge7 {[%clk 0:02:47]} 9. Na3 {[%clk 0:02:39]}  O-O {[%clk 0:02:47]} 10. Nb5 {[%clk 0:02:39]}  d5 {[%clk 0:02:45]} 11. d3 {[%clk 0:02:35]}  h6 {[%clk 0:02:38]} 12. exd5 {[%clk 0:02:30]}  Nxd5 {[%clk 0:02:39]} 13. Bb3 {[%clk 0:02:30]}  Be6 {[%clk 0:02:36]} 14. Nd2 {[%clk 0:02:25]}  b6 {[%clk 0:02:25]} 15. Ne4 {[%clk 0:02:19]}  f5 {[%clk 0:02:12]} 16. Ned6 {[%clk 0:02:19]}  Qe7 {[%clk 0:02:06]} 17. Qf3 {[%clk 0:02:11]}  e4 {[%clk 0:01:26]} 18. dxe4 {[%clk 0:02:10]}  Ne5 {[%clk 0:00:53]} 19. Qd1 {[%clk 0:02:10]}  Nf6 {[%clk 0:00:42]} 20. Bxe6+ {[%clk 0:02:00]}  Qxe6 {[%clk 0:00:42]} 21. Nc7 {[%clk 0:02:00]}  Qd7 {[%clk 0:00:31]} 22. Nxa8 {[%clk 0:02:00]}  Rxa8 {[%clk 0:00:32]} 23. f4 {[%clk 0:01:54]}  Nc6 {[%clk 0:00:23]} 24. e5 {[%clk 0:01:55]}  Ne8 {[%clk 0:00:22]} 25. Nxe8 {[%clk 0:01:52]}  Qxe8 {[%clk 0:00:23]} 26. Be3 {[%clk 0:01:53]}  Kh7 {[%clk 0:00:21]} 27. Qb3 {[%clk 0:01:51]}  Rb8 {[%clk 0:00:20]} 28. Rad1 {[%clk 0:01:52]}  Nd8 {[%clk 0:00:19]} 29. Rd6 {[%clk 0:01:50]}  Nf7 {[%clk 0:00:13]} 30. Rxb6 {[%clk 0:01:50]}  Rxb6 {[%clk 0:00:12]} 31. Qxb6 {[%clk 0:01:51]}  Qxa4 {[%clk 0:00:13]} 32. Qxc5 {[%clk 0:01:52]}  Qc2 {[%clk 0:00:07]} 33. e6 {[%clk 0:01:52]} 1-0


[Site "https://www.chess.com"]

[Event "Titled Tuesday Blitz August 22 Late 2023"]
[White "Keymer, Vincent"]
[Black "ProphetReborn"]
[WhiteFideId "12940690"]
[WhiteElo "2958"]
[BlackElo "2806"]
[Result "1-0"]
[Round "4"]
[TimeControl "180+1"]
[Date "2023.08.22"]
[WhiteClock "0:00:03"]
[BlackClock "0:00:13"]
[Board "15"]

1. a3 {[%clk 0:03:00]}  Nf6 {[%clk 0:02:58]} 2. Nf3 {[%clk 0:03:00]}  d5 {[%clk 0:02:54]} 3. e3 {[%clk 0:03:00]}  c5 {[%clk 0:02:53]} 4. b4 {[%clk 0:03:00]}  Nc6 {[%clk 0:02:52]} 5. bxc5 {[%clk 0:02:59]}  Qa5 {[%clk 0:02:32]} 6. Bb2 {[%clk 0:02:33]}  Qxc5 {[%clk 0:02:32]} 7. Be2 {[%clk 0:02:26]}  Bf5 {[%clk 0:02:32]} 8. Nc3 {[%clk 0:02:15]}  e6 {[%clk 0:02:30]} 9. Nb5 {[%clk 0:02:05]}  Rc8 {[%clk 0:02:27]} 10. O-O {[%clk 0:01:56]}  Bxc2 {[%clk 0:02:21]} 11. Qe1 {[%clk 0:01:55]}  a6 {[%clk 0:02:18]} 12. Nbd4 {[%clk 0:01:35]}  Qb6 {[%clk 0:02:17]} 13. Nxc2 {[%clk 0:01:06]}  Qxb2 {[%clk 0:02:17]} 14. Ncd4 {[%clk 0:01:06]}  Nxd4 {[%clk 0:02:07]} 15. Nxd4 {[%clk 0:01:01]}  Qb6 {[%clk 0:02:07]} 16. Qb1 {[%clk 0:01:00]}  Bc5 {[%clk 0:02:05]} 17. Nf3 {[%clk 0:00:42]}  Qxb1 {[%clk 0:01:58]} 18. Rfxb1 {[%clk 0:00:42]}  Rc7 {[%clk 0:01:59]} 19. Bxa6 {[%clk 0:00:39]}  Ke7 {[%clk 0:01:56]} 20. Rxb7 {[%clk 0:00:38]}  Rxb7 {[%clk 0:01:56]} 21. Bxb7 {[%clk 0:00:39]}  Rb8 {[%clk 0:01:56]} 22. Bc6 {[%clk 0:00:23]}  Bxa3 {[%clk 0:01:55]} 23. g4 {[%clk 0:00:22]}  Bc5 {[%clk 0:01:47]} 24. g5 {[%clk 0:00:21]}  Ne4 {[%clk 0:01:46]} 25. d3 {[%clk 0:00:21]}  Nd6 {[%clk 0:01:39]} 26. d4 {[%clk 0:00:20]}  Bb6 {[%clk 0:01:38]} 27. Ne5 {[%clk 0:00:13]}  Rc8 {[%clk 0:01:31]} 28. Ra6 {[%clk 0:00:11]}  Bd8 {[%clk 0:01:13]} 29. Ba4 {[%clk 0:00:11]}  Ne4 {[%clk 0:01:00]} 30. h4 {[%clk 0:00:05]}  Rc1+ {[%clk 0:00:50]} 31. Kg2 {[%clk 0:00:05]}  Bc7 {[%clk 0:00:51]} 32. Ra7 {[%clk 0:00:02]}  f6 {[%clk 0:00:45]} 33. Nd3 {[%clk 0:00:02]}  Rc3 {[%clk 0:00:44]} 34. Nc5 {[%clk 0:00:03]}  Kd6 {[%clk 0:00:18]} 35. Ra6+ {[%clk 0:00:03]}  Ke7 {[%clk 0:00:19]} 36. Rxe6+ {[%clk 0:00:03]}  Kf7 {[%clk 0:00:18]} 37. Nxe4 {[%clk 0:00:04]}  dxe4 {[%clk 0:00:18]} 38. Rxe4 {[%clk 0:00:04]}  fxg5 {[%clk 0:00:17]} 39. hxg5 {[%clk 0:00:05]}  Kg6 {[%clk 0:00:18]} 40. Re7 {[%clk 0:00:03]}  Bd8 {[%clk 0:00:17]} 41. Be8+ {[%clk 0:00:03]}  Kxg5 {[%clk 0:00:15]} 42. Rxg7+ {[%clk 0:00:04]}  Kh6 {[%clk 0:00:16]} 43. Rd7 {[%clk 0:00:04]}  Bh4 {[%clk 0:00:16]} 44. Rf7 {[%clk 0:00:03]}  Rc8 {[%clk 0:00:15]} 45. Bd7 {[%clk 0:00:03]}  Rd8 {[%clk 0:00:16]} 46. Bf5 {[%clk 0:00:03]}  Kg5 {[%clk 0:00:15]} 47. f4+ {[%clk 0:00:03]}  Kh5 {[%clk 0:00:13]} 48. Rxh7# {[%clk 0:00:03]} 1-0


[Site "https://www.chess.com"]

[Event "Titled Tuesday Blitz August 22 Late 2023"]
[White "Drygalov, Sergey"]
[Black "Skvortsov, Andrei"]
[WhiteFideId "24171743"]
[BlackFideId "24108600"]
[WhiteElo "2947"]
[BlackElo "2676"]
[Result "1-0"]
[Round "4"]
[TimeControl "180+1"]
[Date "2023.08.22"]
[WhiteClock "0:00:22"]
[BlackClock "0:00:02"]
[Board "18"]

1. d4 {[%clk 0:03:00]}  g6 {[%clk 0:02:59]} 2. c4 {[%clk 0:02:59]}  Bg7 {[%clk 0:02:59]} 3. Nf3 {[%clk 0:03:00]}  e6 {[%clk 0:03:00]} 4. Nc3 {[%clk 0:03:00]}  Ne7 {[%clk 0:03:01]} 5. h4 {[%clk 0:02:59]}  h6 {[%clk 0:03:00]} 6. e4 {[%clk 0:02:58]}  d6 {[%clk 0:03:00]} 7. Be3 {[%clk 0:02:56]}  Nd7 {[%clk 0:02:59]} 8. Qd2 {[%clk 0:02:56]}  a6 {[%clk 0:02:59]} 9. Be2 {[%clk 0:02:50]}  b6 {[%clk 0:02:58]} 10. O-O-O {[%clk 0:02:41]}  Bb7 {[%clk 0:02:58]} 11. d5 {[%clk 0:02:41]}  Ne5 {[%clk 0:02:54]} 12. Nxe5 {[%clk 0:02:40]}  Bxe5 {[%clk 0:02:51]} 13. f4 {[%clk 0:02:40]}  Bg7 {[%clk 0:02:50]} 14. h5 {[%clk 0:02:40]}  exd5 {[%clk 0:02:49]} 15. cxd5 {[%clk 0:02:36]}  b5 {[%clk 0:02:46]} 16. Bd4 {[%clk 0:02:34]}  Bxd4 {[%clk 0:02:18]} 17. Qxd4 {[%clk 0:02:35]}  Rg8 {[%clk 0:02:18]} 18. hxg6 {[%clk 0:02:34]}  Nxg6 {[%clk 0:02:17]} 19. g3 {[%clk 0:02:30]}  Nf8 {[%clk 0:02:08]} 20. a4 {[%clk 0:02:06]}  Rxg3 {[%clk 0:01:56]} 21. Rxh6 {[%clk 0:02:03]}  Rg6 {[%clk 0:01:30]} 22. Rxg6 {[%clk 0:01:21]}  Nxg6 {[%clk 0:01:29]} 23. Bh5 {[%clk 0:01:21]}  Qh4 {[%clk 0:01:23]} 24. Bxg6 {[%clk 0:01:20]}  Qxf4+ {[%clk 0:01:22]} 25. Kb1 {[%clk 0:01:20]}  fxg6 {[%clk 0:01:22]} 26. Qh8+ {[%clk 0:01:15]}  Qf8 {[%clk 0:01:22]} 27. Qh3 {[%clk 0:01:14]}  b4 {[%clk 0:01:15]} 28. Ne2 {[%clk 0:01:09]}  Bc8 {[%clk 0:01:13]} 29. Qg2 {[%clk 0:01:04]}  Qg7 {[%clk 0:01:02]} 30. Nd4 {[%clk 0:00:56]}  Bd7 {[%clk 0:00:59]} 31. Rc1 {[%clk 0:00:42]}  Qxd4 {[%clk 0:00:39]} 32. Qxg6+ {[%clk 0:00:40]}  Ke7 {[%clk 0:00:39]} 33. Qh7+ {[%clk 0:00:31]}  Kd8 {[%clk 0:00:36]} 34. b3 {[%clk 0:00:29]}  Kc8 {[%clk 0:00:12]} 35. Rc2 {[%clk 0:00:26]}  Qd1+ {[%clk 0:00:10]} 36. Kb2 {[%clk 0:00:25]}  Qd4+ {[%clk 0:00:11]} 37. Ka2 {[%clk 0:00:25]}  Qe5 {[%clk 0:00:09]} 38. Rg2 {[%clk 0:00:22]}  Kb7 {[%clk 0:00:06]} 39. Qxd7 {[%clk 0:00:22]}  Qxe4 {[%clk 0:00:02]} 40. Qc6+ {[%clk 0:00:22]} 1-0


[Site "https://www.chess.com"]

[Event "Titled Tuesday Blitz August 22 Late 2023"]
[White "Kovalev, Vladislav"]
[Black "Arias, Juan Cruz"]
[WhiteFideId "13504398"]
[BlackFideId "118540"]
[WhiteElo "2942"]
[BlackElo "2670"]
[Result "1-0"]
[Round "4"]
[TimeControl "180+1"]
[Date "2023.08.22"]
[WhiteClock "0:00:50"]
[BlackClock "0:00:21"]
[Board "19"]

1. e4 {[%clk 0:03:00]}  c6 {[%clk 0:02:59]} 2. Nf3 {[%clk 0:03:00]}  d5 {[%clk 0:03:00]} 3. d3 {[%clk 0:03:01]}  dxe4 {[%clk 0:02:59]} 4. dxe4 {[%clk 0:03:02]}  Qxd1+ {[%clk 0:02:58]} 5. Kxd1 {[%clk 0:03:03]}  Nf6 {[%clk 0:02:55]} 6. Nbd2 {[%clk 0:03:02]}  g6 {[%clk 0:02:53]} 7. Ne5 {[%clk 0:03:00]}  Bh6 {[%clk 0:02:49]} 8. Bc4 {[%clk 0:02:53]}  e6 {[%clk 0:02:45]} 9. f3 {[%clk 0:02:51]}  Nbd7 {[%clk 0:02:43]} 10. Nd3 {[%clk 0:02:49]}  O-O {[%clk 0:02:28]} 11. a4 {[%clk 0:02:49]}  Rd8 {[%clk 0:02:28]} 12. a5 {[%clk 0:02:39]}  Ne8 {[%clk 0:02:25]} 13. Bb3 {[%clk 0:02:33]}  Nc7 {[%clk 0:02:26]} 14. Nc4 {[%clk 0:02:27]}  Bxc1 {[%clk 0:02:24]} 15. Kxc1 {[%clk 0:02:28]}  b6 {[%clk 0:02:18]} 16. Rd1 {[%clk 0:02:27]}  b5 {[%clk 0:02:10]} 17. Nce5 {[%clk 0:01:44]}  Nxe5 {[%clk 0:01:50]} 18. Nxe5 {[%clk 0:01:45]}  Rxd1+ {[%clk 0:01:49]} 19. Kxd1 {[%clk 0:01:46]}  Bb7 {[%clk 0:01:48]} 20. Ke2 {[%clk 0:01:45]}  Rd8 {[%clk 0:01:44]} 21. a6 {[%clk 0:01:42]}  Ba8 {[%clk 0:01:31]} 22. Nd3 {[%clk 0:01:36]}  Kf8 {[%clk 0:01:16]} 23. Nc5 {[%clk 0:01:33]}  Ke7 {[%clk 0:01:16]} 24. c3 {[%clk 0:01:22]}  Rb8 {[%clk 0:01:16]} 25. Rd1 {[%clk 0:01:21]}  Rd8 {[%clk 0:01:16]} 26. Rxd8 {[%clk 0:01:15]}  Kxd8 {[%clk 0:01:16]} 27. Ke3 {[%clk 0:01:09]}  Ke7 {[%clk 0:01:13]} 28. e5 {[%clk 0:01:08]}  Nd5+ {[%clk 0:01:01]} 29. Bxd5 {[%clk 0:01:05]}  cxd5 {[%clk 0:01:02]} 30. Kd4 {[%clk 0:01:06]}  Bc6 {[%clk 0:00:57]} 31. Nb7 {[%clk 0:01:04]}  Kd7 {[%clk 0:00:47]} 32. Nd6 {[%clk 0:00:50]}  f6 {[%clk 0:00:44]} 33. f4 {[%clk 0:00:51]}  fxe5+ {[%clk 0:00:44]} 34. fxe5 {[%clk 0:00:52]}  b4 {[%clk 0:00:37]} 35. cxb4 {[%clk 0:00:49]}  Ba4 {[%clk 0:00:37]} 36. b5 {[%clk 0:00:49]}  Kc7 {[%clk 0:00:36]} 37. Kc5 {[%clk 0:00:49]}  Bc2 {[%clk 0:00:32]} 38. g3 {[%clk 0:00:50]}  Bd3 {[%clk 0:00:32]} 39. h4 {[%clk 0:00:49]}  h6 {[%clk 0:00:32]} 40. Nf7 {[%clk 0:00:48]}  h5 {[%clk 0:00:32]} 41. Ng5 {[%clk 0:00:48]}  Bf5 {[%clk 0:00:32]} 42. Nf3 {[%clk 0:00:48]}  Bh3 {[%clk 0:00:29]} 43. Nd4 {[%clk 0:00:49]}  Bg4 {[%clk 0:00:21]} 44. Nc6 {[%clk 0:00:50]} 1-0


[Site "https://www.chess.com"]

[Event "Titled Tuesday Blitz August 22 Late 2023"]
[White "Kozusek, Daniel"]
[Black "Henriquez Villagra, Cristobal"]
[WhiteFideId "349500"]
[BlackFideId "3409350"]
[WhiteElo "2596"]
[BlackElo "2937"]
[Result "0-1"]
[Round "4"]
[TimeControl "180+1"]
[Date "2023.08.22"]
[WhiteClock "0:00:14"]
[BlackClock "0:00:27"]
[Board "20"]

1. d4 {[%clk 0:02:59]}  d6 {[%clk 0:03:00]} 2. Nf3 {[%clk 0:02:58]}  g6 {[%clk 0:02:59]} 3. c4 {[%clk 0:02:59]}  Bg7 {[%clk 0:02:59]} 4. g3 {[%clk 0:02:59]}  f5 {[%clk 0:02:58]} 5. Bg2 {[%clk 0:02:55]}  Nf6 {[%clk 0:02:58]} 6. O-O {[%clk 0:02:55]}  O-O {[%clk 0:02:59]} 7. Nc3 {[%clk 0:02:54]}  c6 {[%clk 0:02:47]} 8. b3 {[%clk 0:02:52]}  Qc7 {[%clk 0:02:47]} 9. Bb2 {[%clk 0:02:49]}  e5 {[%clk 0:02:47]} 10. e3 {[%clk 0:02:47]}  e4 {[%clk 0:02:33]} 11. Nd2 {[%clk 0:02:44]}  a5 {[%clk 0:02:29]} 12. Rc1 {[%clk 0:02:40]}  Be6 {[%clk 0:02:28]} 13. f3 {[%clk 0:02:35]}  exf3 {[%clk 0:02:25]} 14. Nxf3 {[%clk 0:02:35]}  Kh8 {[%clk 0:02:18]} 15. Qd3 {[%clk 0:02:17]}  Nbd7 {[%clk 0:02:16]} 16. Ng5 {[%clk 0:02:16]}  Bg8 {[%clk 0:02:15]} 17. e4 {[%clk 0:02:13]}  fxe4 {[%clk 0:02:12]} 18. Ncxe4 {[%clk 0:02:11]}  Nxe4 {[%clk 0:02:09]} 19. Qxe4 {[%clk 0:02:06]}  Rae8 {[%clk 0:01:54]} 20. Rxf8 {[%clk 0:02:05]}  Rxf8 {[%clk 0:01:51]} 21. Ne6 {[%clk 0:01:59]}  Bxe6 {[%clk 0:01:39]} 22. Qxe6 {[%clk 0:02:00]}  Nf6 {[%clk 0:01:39]} 23. d5 {[%clk 0:01:50]}  Re8 {[%clk 0:01:36]} 24. Qh3 {[%clk 0:01:32]}  cxd5 {[%clk 0:01:34]} 25. Bxf6 {[%clk 0:01:27]}  Bxf6 {[%clk 0:01:31]} 26. Bxd5 {[%clk 0:01:28]}  Qc5+ {[%clk 0:01:10]} 27. Kh1 {[%clk 0:01:27]}  Qf2 {[%clk 0:01:04]} 28. Qf1 {[%clk 0:00:56]}  Re2 {[%clk 0:00:56]} 29. Qxf2 {[%clk 0:00:51]}  Rxf2 {[%clk 0:00:57]} 30. Bxb7 {[%clk 0:00:41]}  Rxa2 {[%clk 0:00:54]} 31. Bd5 {[%clk 0:00:38]}  Bd4 {[%clk 0:00:52]} 32. Rd1 {[%clk 0:00:31]}  Bc5 {[%clk 0:00:51]} 33. Rd3 {[%clk 0:00:31]}  Kg7 {[%clk 0:00:51]} 34. Rf3 {[%clk 0:00:31]}  g5 {[%clk 0:00:44]} 35. g4 {[%clk 0:00:26]}  Rb2 {[%clk 0:00:42]} 36. Rd3 {[%clk 0:00:24]}  h6 {[%clk 0:00:42]} 37. Rf3 {[%clk 0:00:24]}  Bd4 {[%clk 0:00:42]} 38. Be4 {[%clk 0:00:23]}  Be5 {[%clk 0:00:41]} 39. Kg1 {[%clk 0:00:21]}  Bxh2+ {[%clk 0:00:40]} 40. Kf1 {[%clk 0:00:20]}  Bf4 {[%clk 0:00:40]} 41. Bd5 {[%clk 0:00:20]}  Kf6 {[%clk 0:00:41]} 42. Rh3 {[%clk 0:00:19]}  Ke5 {[%clk 0:00:40]} 43. Rxh6 {[%clk 0:00:19]}  Rxb3 {[%clk 0:00:41]} 44. Re6+ {[%clk 0:00:19]}  Kd4 {[%clk 0:00:41]} 45. Re4+ {[%clk 0:00:18]}  Kc5 {[%clk 0:00:42]} 46. Re8 {[%clk 0:00:18]}  a4 {[%clk 0:00:41]} 47. Ra8 {[%clk 0:00:18]}  a3 {[%clk 0:00:41]} 48. Ke2 {[%clk 0:00:18]}  Kd4 {[%clk 0:00:40]} 49. Ra4 {[%clk 0:00:18]}  Rc3 {[%clk 0:00:40]} 50. Bg8 {[%clk 0:00:17]}  Kc5 {[%clk 0:00:32]} 51. Bd5 {[%clk 0:00:17]}  Rb3 {[%clk 0:00:25]} 52. Be6 {[%clk 0:00:15]}  Re3+ {[%clk 0:00:26]} 53. Kf2 {[%clk 0:00:16]}  Rxe6 {[%clk 0:00:27]} 54. Kf3 {[%clk 0:00:14]}  Re3+ {[%clk 0:00:27]} 0-1


[Site "https://www.chess.com"]

[Event "Titled Tuesday Blitz August 22 Late 2023"]
[White "Kramnik, Vladimir"]
[Black "Sanhueza, Cristian"]
[WhiteFideId "4101588"]
[BlackFideId "116815"]
[WhiteElo "2935"]
[BlackElo "2488"]
[Result "1-0"]
[Round "4"]
[TimeControl "180+1"]
[Date "2023.08.22"]
[WhiteClock "0:00:39"]
[BlackClock "0:00:00"]
[Board "21"]

1. e4 {[%clk 0:03:00]}  e5 {[%clk 0:03:00]} 2. Nf3 {[%clk 0:03:00]}  Nc6 {[%clk 0:03:00]} 3. Bb5 {[%clk 0:02:59]}  a6 {[%clk 0:03:00]} 4. Ba4 {[%clk 0:02:59]}  Nf6 {[%clk 0:03:01]} 5. d3 {[%clk 0:02:59]}  b5 {[%clk 0:02:58]} 6. Bb3 {[%clk 0:02:58]}  Bc5 {[%clk 0:02:58]} 7. Nc3 {[%clk 0:02:56]}  d6 {[%clk 0:02:58]} 8. Nd5 {[%clk 0:02:55]}  Ne7 {[%clk 0:02:52]} 9. d4 {[%clk 0:02:40]}  exd4 {[%clk 0:02:39]} 10. Nxf6+ {[%clk 0:02:38]}  gxf6 {[%clk 0:02:37]} 11. Nxd4 {[%clk 0:02:37]}  Bd7 {[%clk 0:02:28]} 12. c3 {[%clk 0:02:34]}  Ng6 {[%clk 0:02:08]} 13. O-O {[%clk 0:02:27]}  O-O {[%clk 0:01:58]} 14. Bd5 {[%clk 0:02:18]}  Rb8 {[%clk 0:01:30]} 15. Qh5 {[%clk 0:02:18]}  Bxd4 {[%clk 0:01:19]} 16. cxd4 {[%clk 0:02:17]}  c6 {[%clk 0:01:20]} 17. Bb3 {[%clk 0:02:17]}  Qe7 {[%clk 0:01:19]} 18. Bc2 {[%clk 0:02:11]}  Rfe8 {[%clk 0:01:13]} 19. f4 {[%clk 0:02:08]}  c5 {[%clk 0:01:07]} 20. d5 {[%clk 0:02:01]}  Kh8 {[%clk 0:00:54]} 21. b3 {[%clk 0:01:54]}  c4 {[%clk 0:00:45]} 22. b4 {[%clk 0:01:45]}  Rbc8 {[%clk 0:00:46]} 23. Be3 {[%clk 0:01:44]}  Rg8 {[%clk 0:00:18]} 24. Bd4 {[%clk 0:01:39]}  Rg7 {[%clk 0:00:19]} 25. Bc3 {[%clk 0:01:31]}  Rcg8 {[%clk 0:00:19]} 26. g3 {[%clk 0:01:25]}  Nf8 {[%clk 0:00:05]} 27. Qh4 {[%clk 0:01:22]}  Rg6 {[%clk 0:00:04]} 28. Rae1 {[%clk 0:01:11]}  Bg4 {[%clk 0:00:05]} 29. e5 {[%clk 0:01:02]}  Nd7 {[%clk 0:00:04]} 30. exf6 {[%clk 0:00:55]}  Qf8 {[%clk 0:00:04]} 31. Bxg6 {[%clk 0:00:48]}  Rxg6 {[%clk 0:00:04]} 32. Re7 {[%clk 0:00:44]}  Bf5 {[%clk 0:00:00]} 33. Rfe1 {[%clk 0:00:39]} 1-0


[Site "https://www.chess.com"]

[Event "Titled Tuesday Blitz August 22 Late 2023"]
[White "Paravyan, David"]
[Black "Zhu, Jiner"]
[WhiteFideId "4194985"]
[BlackFideId "8608059"]
[WhiteElo "2973"]
[BlackElo "2659"]
[Result "0-1"]
[Round "4"]
[TimeControl "180+1"]
[Date "2023.08.22"]
[WhiteClock "0:00:02"]
[BlackClock "0:00:04"]
[Board "28"]

1. e4 {[%clk 0:02:59]}  c5 {[%clk 0:02:53]} 2. Nf3 {[%clk 0:02:58]}  Nc6 {[%clk 0:02:54]} 3. Bb5 {[%clk 0:02:58]}  g6 {[%clk 0:02:52]} 4. Bxc6 {[%clk 0:02:55]}  bxc6 {[%clk 0:02:52]} 5. O-O {[%clk 0:02:55]}  Bg7 {[%clk 0:02:52]} 6. Re1 {[%clk 0:02:55]}  Nf6 {[%clk 0:02:52]} 7. e5 {[%clk 0:02:55]}  Nd5 {[%clk 0:02:52]} 8. c4 {[%clk 0:02:54]}  Nc7 {[%clk 0:02:52]} 9. Nc3 {[%clk 0:02:54]}  O-O {[%clk 0:02:50]} 10. d4 {[%clk 0:02:53]}  cxd4 {[%clk 0:02:49]} 11. Qxd4 {[%clk 0:02:53]}  Ne6 {[%clk 0:02:46]} 12. Qh4 {[%clk 0:02:53]}  f6 {[%clk 0:02:46]} 13. Bh6 {[%clk 0:02:51]}  g5 {[%clk 0:02:35]} 14. Nxg5 {[%clk 0:02:26]}  fxg5 {[%clk 0:02:33]} 15. Bxg5 {[%clk 0:02:26]}  Nxg5 {[%clk 0:02:29]} 16. Qxg5 {[%clk 0:02:27]}  d5 {[%clk 0:01:51]} 17. exd6 {[%clk 0:01:55]}  Qxd6 {[%clk 0:01:35]} 18. Rxe7 {[%clk 0:01:49]}  Qf6 {[%clk 0:01:30]} 19. Qe3 {[%clk 0:01:46]}  Bf5 {[%clk 0:01:23]} 20. Re1 {[%clk 0:01:45]}  a5 {[%clk 0:01:18]} 21. Ne2 {[%clk 0:01:21]}  Rad8 {[%clk 0:01:13]} 22. Ng3 {[%clk 0:01:20]}  Bg6 {[%clk 0:01:12]} 23. b3 {[%clk 0:01:14]}  Rd3 {[%clk 0:00:44]} 24. Qe2 {[%clk 0:01:12]}  Qd4 {[%clk 0:00:41]} 25. Ne4 {[%clk 0:01:07]}  Bxe4 {[%clk 0:00:24]} 26. Rxe4 {[%clk 0:01:07]}  Qd8 {[%clk 0:00:24]} 27. Qg4 {[%clk 0:00:40]}  Rd2 {[%clk 0:00:22]} 28. f3 {[%clk 0:00:34]}  Rxa2 {[%clk 0:00:19]} 29. h4 {[%clk 0:00:35]}  Kh8 {[%clk 0:00:16]} 30. h5 {[%clk 0:00:34]}  h6 {[%clk 0:00:16]} 31. Kh2 {[%clk 0:00:30]}  Rg8 {[%clk 0:00:16]} 32. Qe6 {[%clk 0:00:12]}  Qg5 {[%clk 0:00:12]} 33. Rg4 {[%clk 0:00:11]}  Qxh5+ {[%clk 0:00:12]} 34. Kg1 {[%clk 0:00:12]}  Bd4+ {[%clk 0:00:11]} 35. Re3 {[%clk 0:00:09]}  Bxe3+ {[%clk 0:00:10]} 36. Qxe3 {[%clk 0:00:09]}  Rxg4 {[%clk 0:00:08]} 37. fxg4 {[%clk 0:00:10]}  Ra1+ {[%clk 0:00:08]} 38. Kf2 {[%clk 0:00:10]}  Qf7+ {[%clk 0:00:09]} 39. Kg3 {[%clk 0:00:10]}  Rf1 {[%clk 0:00:07]} 40. Qxh6+ {[%clk 0:00:09]}  Kg8 {[%clk 0:00:07]} 41. Qg5+ {[%clk 0:00:10]}  Kf8 {[%clk 0:00:06]} 42. Qd8+ {[%clk 0:00:10]}  Kg7 {[%clk 0:00:06]} 43. Qg5+ {[%clk 0:00:09]}  Qg6 {[%clk 0:00:06]} 44. Qe5+ {[%clk 0:00:09]}  Qf6 {[%clk 0:00:04]} 45. Qc7+ {[%clk 0:00:10]}  Kg6 {[%clk 0:00:04]} 46. Qb8 {[%clk 0:00:07]}  Qc3+ {[%clk 0:00:03]} 47. Kh2 {[%clk 0:00:08]}  Qf6 {[%clk 0:00:03]} 48. Qg8+ {[%clk 0:00:07]}  Kh6 {[%clk 0:00:03]} 49. g5+ {[%clk 0:00:03]}  Qxg5 {[%clk 0:00:03]} 50. Qh8+ {[%clk 0:00:03]}  Kg6 {[%clk 0:00:04]} 51. Qg8+ {[%clk 0:00:04]}  Kh5 {[%clk 0:00:04]} 52. Qh7+ {[%clk 0:00:04]}  Qh6 {[%clk 0:00:04]} 53. Qg8 {[%clk 0:00:04]}  Qf4+ {[%clk 0:00:03]} 54. g3 {[%clk 0:00:02]}  Qf2+ {[%clk 0:00:04]} 55. Kh3 {[%clk 0:00:02]}  Rh1# {[%clk 0:00:04]} 0-1


[Site "https://www.chess.com"]

[Event "Titled Tuesday Blitz August 22 Late 2023"]
[White "Mikaelyan, Arman"]
[Black "Skatchkov, Valery"]
[WhiteFideId "13304852"]
[BlackFideId "24195812"]
[WhiteElo "2918"]
[BlackElo "2647"]
[Result "0-1"]
[Round "4"]
[TimeControl "180+1"]
[Date "2023.08.22"]
[WhiteClock "0:00:00"]
[BlackClock "0:00:04"]
[Board "29"]

1. b4 {[%clk 0:03:00]}  Nf6 {[%clk 0:02:47]} 2. Bb2 {[%clk 0:03:00]}  e5 {[%clk 0:02:47]} 3. a3 {[%clk 0:02:56]}  Bd6 {[%clk 0:02:26]} 4. e3 {[%clk 0:02:54]}  O-O {[%clk 0:02:26]} 5. Nf3 {[%clk 0:02:52]}  e4 {[%clk 0:02:23]} 6. Nd4 {[%clk 0:02:50]}  Be5 {[%clk 0:02:23]} 7. Be2 {[%clk 0:02:40]}  a5 {[%clk 0:02:21]} 8. O-O {[%clk 0:02:37]}  b6 {[%clk 0:02:18]} 9. f4 {[%clk 0:02:33]}  exf3 {[%clk 0:02:17]} 10. Bxf3 {[%clk 0:02:33]}  d5 {[%clk 0:02:16]} 11. b5 {[%clk 0:02:06]}  Qd6 {[%clk 0:02:14]} 12. h3 {[%clk 0:02:02]}  c5 {[%clk 0:02:03]} 13. bxc6 {[%clk 0:02:00]}  Nxc6 {[%clk 0:02:03]} 14. Nb5 {[%clk 0:01:35]}  Qe7 {[%clk 0:02:01]} 15. Bxe5 {[%clk 0:01:34]}  Nxe5 {[%clk 0:02:00]} 16. N1c3 {[%clk 0:01:33]}  Ba6 {[%clk 0:01:54]} 17. a4 {[%clk 0:01:31]}  Rad8 {[%clk 0:01:52]} 18. Be2 {[%clk 0:01:26]}  Nc4 {[%clk 0:01:37]} 19. Kh1 {[%clk 0:01:22]}  Bxb5 {[%clk 0:01:31]} 20. axb5 {[%clk 0:01:20]}  Qe5 {[%clk 0:01:29]} 21. Bxc4 {[%clk 0:01:13]}  dxc4 {[%clk 0:01:29]} 22. Qe2 {[%clk 0:01:14]}  Nh5 {[%clk 0:01:23]} 23. Ne4 {[%clk 0:00:37]}  Qxe4 {[%clk 0:00:58]} 24. Qxh5 {[%clk 0:00:37]}  Rxd2 {[%clk 0:00:58]} 25. Rf3 {[%clk 0:00:38]}  Rd5 {[%clk 0:00:52]} 26. Rf4 {[%clk 0:00:28]}  Qxe3 {[%clk 0:00:29]} 27. Qxd5 {[%clk 0:00:26]}  Qxf4 {[%clk 0:00:29]} 28. Qc6 {[%clk 0:00:26]}  Qd4 {[%clk 0:00:28]} 29. Rf1 {[%clk 0:00:26]}  a4 {[%clk 0:00:25]} 30. c3 {[%clk 0:00:22]}  Qxc3 {[%clk 0:00:17]} 31. Qxb6 {[%clk 0:00:22]}  a3 {[%clk 0:00:17]} 32. Qa7 {[%clk 0:00:19]}  Qb2 {[%clk 0:00:15]} 33. b6 {[%clk 0:00:16]}  c3 {[%clk 0:00:16]} 34. b7 {[%clk 0:00:14]}  c2 {[%clk 0:00:16]} 35. b8=Q {[%clk 0:00:09]}  Qxb8 {[%clk 0:00:15]} 36. Qxa3 {[%clk 0:00:09]}  h6 {[%clk 0:00:10]} 37. Qa2 {[%clk 0:00:06]}  Qc7 {[%clk 0:00:07]} 38. Rc1 {[%clk 0:00:04]}  Rc8 {[%clk 0:00:07]} 39. Qb2 {[%clk 0:00:04]}  Qc3 {[%clk 0:00:07]} 40. Qb7 {[%clk 0:00:03]}  Rc7 {[%clk 0:00:05]} 41. Qb8+ {[%clk 0:00:03]}  Kh7 {[%clk 0:00:06]} 42. Qb6 {[%clk 0:00:02]}  Rd7 {[%clk 0:00:04]} 43. Kh2 {[%clk 0:00:00]}  Rd1 {[%clk 0:00:04]} 0-1


[Site "https://www.chess.com"]